Body Name,Body,Service Division,Expense Type,Date Paid,Transaction Ref,Invoice Amount,Supplier Name,,
South Holland District Council,http://statistics.data.gov.uk/id/local-authority/32UF,Corporate,Payroll - Unison,01/03/2022,30012261,923.75 ,Unison,,
South Holland District Council,http://statistics.data.gov.uk/id/local-authority/32UF,Asset and Property,Buildings Maintenance - Programmed,10/02/2022,30011259,"1,200.00 ",Robert Dunmore,,
South Holland District Council,http://statistics.data.gov.uk/id/local-authority/32UF,Asset and Property,Buildings Maintenance - Programmed,03/02/2022,30011299,"6,470.00 ",M and R Glass and Glazing Ltd,,
South Holland District Council,http://statistics.data.gov.uk/id/local-authority/32UF,Asset and Property,Buildings Maintenance - Programmed,03/02/2022,30011300,"1,114.00 ",M and R Glass and Glazing Ltd,,
South Holland District Council,http://statistics.data.gov.uk/id/local-authority/32UF,Asset and Property,Buildings Maintenance - Programmed,15/02/2022,30011761,656.96 ,Glen Farrow UK Ltd,,
South Holland District Council,http://statistics.data.gov.uk/id/local-authority/32UF,Asset and Property,Buildings Maintenance - Programmed,15/02/2022,30011765,"5,886.99 ",Glen Farrow UK Ltd,,
South Holland District Council,http://statistics.data.gov.uk/id/local-authority/32UF,Asset and Property,Buildings Maintenance - Programmed,15/02/2022,30011830,800.00 ,Hollyoak Landscapes Ltd,,
South Holland District Council,http://statistics.data.gov.uk/id/local-authority/32UF,Asset and Property,Buildings Maintenance - Programmed,15/02/2022,30011831,"1,200.00 ",Hollyoak Landscapes Ltd,,
South Holland District Council,http://statistics.data.gov.uk/id/local-authority/32UF,Asset and Property,Buildings Maintenance - Programmed,22/02/2022,30011980,"6,848.00 ",M and R Glass and Glazing Ltd,,
South Holland District Council,http://statistics.data.gov.uk/id/local-authority/32UF,Asset and Property,Buildings Maintenance - Programmed,22/02/2022,30012000,800.00 ,Hollyoak Landscapes Ltd,,
South Holland District Council,http://statistics.data.gov.uk/id/local-authority/32UF,Asset and Property,Buildings Maintenance - Programmed,22/02/2022,30012030,550.00 ,Glen Farrow UK Ltd,,
South Holland District Council,http://statistics.data.gov.uk/id/local-authority/32UF,Asset and Property,Buildings Maintenance - Programmed,22/02/2022,30012043,"5,015.50 ",Newflame,,
South Holland District Council,http://statistics.data.gov.uk/id/local-authority/32UF,Asset and Property,Buildings Maintenance - Responsive,03/02/2022,30011335,731.84 ,GBSG Ltd,,
South Holland District Council,http://statistics.data.gov.uk/id/local-authority/32UF,Asset and Property,Buildings Maintenance - Responsive,10/02/2022,30011438,"2,700.00 ",Greenscape Tree Safe Ltd,,
South Holland District Council,http://statistics.data.gov.uk/id/local-authority/32UF,Asset and Property,Buildings Maintenance - Responsive,24/02/2022,30011627,"2,220.92 ",Orbis Protect  Limited,,
South Holland District Council,http://statistics.data.gov.uk/id/local-authority/32UF,Asset and Property,Buildings Maintenance - Responsive,22/02/2022,30011751,472.50 ,Glen Farrow UK Ltd,,
South Holland District Council,http://statistics.data.gov.uk/id/local-authority/32UF,Asset and Property,Buildings Maintenance - Responsive,15/02/2022,30011753,509.34 ,Glen Farrow UK Ltd,,
South Holland District Council,http://statistics.data.gov.uk/id/local-authority/32UF,Asset and Property,Buildings Maintenance - Responsive,15/02/2022,30011762,"1,175.87 ",Glen Farrow UK Ltd,,
South Holland District Council,http://statistics.data.gov.uk/id/local-authority/32UF,Asset and Property,Buildings Maintenance - Responsive,15/02/2022,30011763,966.20 ,Glen Farrow UK Ltd,,
South Holland District Council,http://statistics.data.gov.uk/id/local-authority/32UF,Asset and Property,Buildings Maintenance - Responsive,15/02/2022,30011764,"3,621.00 ",Glen Farrow UK Ltd,,
South Holland District Council,http://statistics.data.gov.uk/id/local-authority/32UF,Asset and Property,Buildings Maintenance - Responsive,15/02/2022,30011765,"2,772.00 ",Glen Farrow UK Ltd,,
South Holland District Council,http://statistics.data.gov.uk/id/local-authority/32UF,Asset and Property,Buildings Maintenance - Responsive,22/02/2022,30011943,973.38 ,H20 Nationwide Limited,,
South Holland District Council,http://statistics.data.gov.uk/id/local-authority/32UF,Asset and Property,Buildings Maintenance - Responsive,22/02/2022,30011960,651.92 ,H20 Nationwide Limited,,
South Holland District Council,http://statistics.data.gov.uk/id/local-authority/32UF,Asset and Property,Buildings Maintenance - Responsive,22/02/2022,30012039,450.00 ,D Harrison,,
South Holland District Council,http://statistics.data.gov.uk/id/local-authority/32UF,Asset and Property,Buildings Maintenance - Responsive,22/02/2022,30012120,"2,900.00 ",D Harrison,,
South Holland District Council,http://statistics.data.gov.uk/id/local-authority/32UF,Asset and Property,Electricity,08/02/2022,30011554,"5,388.68 ",Total Energies,,
South Holland District Council,http://statistics.data.gov.uk/id/local-authority/32UF,Asset and Property,Electricity,08/02/2022,30011555,"4,838.51 ",Total Energies,,
South Holland District Council,http://statistics.data.gov.uk/id/local-authority/32UF,Asset and Property,Furniture and Equipment,24/02/2022,30012231,440.00 ,E.ON Energy Solutions Ltd,,
South Holland District Council,http://statistics.data.gov.uk/id/local-authority/32UF,Asset and Property,Professional and Contractors Fees,01/03/2022,30011449,"3,750.00 ",NPS Peterborough Ltd,,
South Holland District Council,http://statistics.data.gov.uk/id/local-authority/32UF,Asset and Property,Rent Payments,08/02/2022,30011192,678.12 ,Broadgate Builders (Spalding) Ltd,,
South Holland District Council,http://statistics.data.gov.uk/id/local-authority/32UF,Building Control,Professional and Contractors Fees,01/03/2022,30011705,"1,140.00 ",Navitas EAS,,
South Holland District Council,http://statistics.data.gov.uk/id/local-authority/32UF,Building Control,Professional and Contractors Fees,01/03/2022,30011776,"2,644.00 ",Ocella Ltd,,
South Holland District Council,http://statistics.data.gov.uk/id/local-authority/32UF,Building Control,Professional and Contractors Fees,01/03/2022,30012307,"1,876.18 ",Lincolnshire County Council,,
South Holland District Council,http://statistics.data.gov.uk/id/local-authority/32UF,Capital,"Purchase of Plant, Machinery and Equipment",03/02/2022,30007770,"38,313.73 ",Acorn MPS Ltd,,
South Holland District Council,http://statistics.data.gov.uk/id/local-authority/32UF,Capital,Works to Buildings (Main Contractor),01/03/2022,30012233,"32,000.00 ",Ian Brown Electrical Engineers Ltd,,
South Holland District Council,http://statistics.data.gov.uk/id/local-authority/32UF,Chief Executive,Agency Staff,15/02/2022,30011777,"7,837.50 ",Penna PLC,,
South Holland District Council,http://statistics.data.gov.uk/id/local-authority/32UF,Chief Executive,Agency Staff,17/02/2022,30011993,666.50 ,Penna PLC,,
South Holland District Council,http://statistics.data.gov.uk/id/local-authority/32UF,Chief Executive,Agency Staff,17/02/2022,30011996,"7,125.00 ",Penna PLC,,
South Holland District Council,http://statistics.data.gov.uk/id/local-authority/32UF,Chief Executive,Agency Staff,17/02/2022,30011997,"11,162.50 ",Penna PLC,,
South Holland District Council,http://statistics.data.gov.uk/id/local-authority/32UF,Chief Executive,Agency Staff,17/02/2022,30011999,"3,800.00 ",Penna PLC,,
South Holland District Council,http://statistics.data.gov.uk/id/local-authority/32UF,Chief Executive,Agency Staff,17/02/2022,30012001,"8,787.50 ",Penna PLC,,
South Holland District Council,http://statistics.data.gov.uk/id/local-authority/32UF,Chief Executive,Agency Staff,17/02/2022,30012002,532.93 ,Penna PLC,,
South Holland District Council,http://statistics.data.gov.uk/id/local-authority/32UF,Chief Executive,Agency Staff,17/02/2022,30012004,608.30 ,Penna PLC,,
South Holland District Council,http://statistics.data.gov.uk/id/local-authority/32UF,Chief Executive,Legal Fees Non-Routine,15/02/2022,30011131,"2,340.00 ",Eversheds LLP,,
South Holland District Council,http://statistics.data.gov.uk/id/local-authority/32UF,Chief Executive,Shared Management,08/02/2022,30009853,"13,030.34 ",Breckland Council,,
South Holland District Council,http://statistics.data.gov.uk/id/local-authority/32UF,Chief Executive,Shared Management,01/03/2022,30011252,"13,075.13 ",Breckland Council,,
South Holland District Council,http://statistics.data.gov.uk/id/local-authority/32UF,Chief Executive,Shared Management,01/03/2022,30011253,"1,803.94 ",Breckland Council,,
South Holland District Council,http://statistics.data.gov.uk/id/local-authority/32UF,Commercialisation - Plan & Building Control,Grants and Contributions to Outside Bodies - No Service Received,01/03/2022,30012329,"3,525.00 ",Lincolnshire Wildlife Trust,,
South Holland District Council,http://statistics.data.gov.uk/id/local-authority/32UF,Community Development,Computer Hardware Maintenance,01/03/2022,30011673,901.05 ,Spektrix Ltd,,
South Holland District Council,http://statistics.data.gov.uk/id/local-authority/32UF,Community Development,Electricity,03/02/2022,30011403,"2,333.01 ",Total Energies,,
South Holland District Council,http://statistics.data.gov.uk/id/local-authority/32UF,Community Development,Electricity,08/02/2022,30011553,"3,869.22 ",Total Energies,,
South Holland District Council,http://statistics.data.gov.uk/id/local-authority/32UF,Community Development,Grounds Maintenance Contract (External),24/02/2022,30012204,"1,700.00 ",Greenscape Tree Safe Ltd,,
South Holland District Council,http://statistics.data.gov.uk/id/local-authority/32UF,Community Development,License Fees,15/02/2022,30011843,915.02 ,PPL PRS Ltd,,
South Holland District Council,http://statistics.data.gov.uk/id/local-authority/32UF,Community Development,Other Income,08/02/2022,30011368,"-2,474.75 ",Live Promotions Events Ltd,,
South Holland District Council,http://statistics.data.gov.uk/id/local-authority/32UF,Community Development,Payments to Bodies in Respect of Income Collected,08/02/2022,30011368,"8,425.00 ",Live Promotions Events Ltd,,
South Holland District Council,http://statistics.data.gov.uk/id/local-authority/32UF,Community Development,Performers and Entertainers Fees,03/02/2022,30011203,"17,585.77 ",Polka Dot Pantomimes,,
South Holland District Council,http://statistics.data.gov.uk/id/local-authority/32UF,Community Development,Professional and Contractors Fees,08/02/2022,30011471,"2,400.00 ",Max Associates Holdings Ltd,,
South Holland District Council,http://statistics.data.gov.uk/id/local-authority/32UF,Community Development,Professional and Contractors Fees,17/02/2022,30011757,868.00 ,Agenda Cleaning Services,,
South Holland District Council,http://statistics.data.gov.uk/id/local-authority/32UF,Democratic Services,Course Fees,17/02/2022,30011675,500.00 ,Maples Solicitors LLP,,
South Holland District Council,http://statistics.data.gov.uk/id/local-authority/32UF,Democratic Services,Legal Fees Non-Routine,17/02/2022,30011637,"2,808.00 ",Womble Bond Dickinson UK LLP,,
South Holland District Council,http://statistics.data.gov.uk/id/local-authority/32UF,Democratic Services,Legal Fees Non-Routine,10/02/2022,30011638,"2,624.90 ",Lincolnshire County Council,,
South Holland District Council,http://statistics.data.gov.uk/id/local-authority/32UF,Democratic Services,Other Miscellaneous Expenses,08/02/2022,30011650,"1,000.00 ",Spalding Indoor Bowls Club,,
South Holland District Council,http://statistics.data.gov.uk/id/local-authority/32UF,Democratic Services,Postages,01/03/2022,30011454,561.75 ,Civica Election Services,,
South Holland District Council,http://statistics.data.gov.uk/id/local-authority/32UF,Democratic Services,Stationery,01/03/2022,30011454,551.64 ,Civica Election Services,,
South Holland District Council,http://statistics.data.gov.uk/id/local-authority/32UF,Economic Development,Furniture and Equipment,17/02/2022,30011298,"1,656.00 ",Safelincs Ltd,,
South Holland District Council,http://statistics.data.gov.uk/id/local-authority/32UF,Economic Development,Grants and Contributions to Outside Bodies - No Service Received,03/02/2022,30011411,"12,000.00 ",Blue Castle (Energy) Ltd,,
South Holland District Council,http://statistics.data.gov.uk/id/local-authority/32UF,Economic Development,Grants and Contributions to Outside Bodies - No Service Received,03/02/2022,30011413,"5,950.00 ",Enterprise Tyres Ltd,,
South Holland District Council,http://statistics.data.gov.uk/id/local-authority/32UF,Economic Development,Grants and Contributions to Outside Bodies - No Service Received,10/02/2022,30011417,"1,935.00 ",Ark Ict Solutions Ltd,,
South Holland District Council,http://statistics.data.gov.uk/id/local-authority/32UF,Economic Development,Grants and Contributions to Outside Bodies - No Service Received,08/02/2022,30011428,873.60 ,Ultimate Finish PCS Ltd,,
South Holland District Council,http://statistics.data.gov.uk/id/local-authority/32UF,Economic Development,Grants and Contributions to Outside Bodies - No Service Received,08/02/2022,30011448,"5,000.00 ",Calthrops Solicitors LLP - Office Account,,
South Holland District Council,http://statistics.data.gov.uk/id/local-authority/32UF,Economic Development,Grants and Contributions to Outside Bodies - No Service Received,08/02/2022,30011490,"24,999.00 ",D.P. Packaging (Spalding) Ltd,,
South Holland District Council,http://statistics.data.gov.uk/id/local-authority/32UF,Economic Development,Grants and Contributions to Outside Bodies - No Service Received,17/02/2022,30011783,"5,397.00 ",Sign Design Services Ltd,,
South Holland District Council,http://statistics.data.gov.uk/id/local-authority/32UF,Economic Development,Grants and Contributions to Outside Bodies - No Service Received,10/02/2022,30011785,"5,000.00 ",Holbeach Laundrette,,
South Holland District Council,http://statistics.data.gov.uk/id/local-authority/32UF,Economic Development,Grants and Contributions to Outside Bodies - No Service Received,10/02/2022,30011788,"6,000.00 ",UK Roof Solutions Ltd ta Vepwear,,
South Holland District Council,http://statistics.data.gov.uk/id/local-authority/32UF,Economic Development,Grants and Contributions to Outside Bodies - No Service Received,15/02/2022,30011815,"6,325.00 ",TesTex NDT Ltd,,
South Holland District Council,http://statistics.data.gov.uk/id/local-authority/32UF,Economic Development,Grants and Contributions to Outside Bodies - No Service Received,15/02/2022,30011816,"22,600.00 ",The Greenstock Lamp Company Ltd,,
South Holland District Council,http://statistics.data.gov.uk/id/local-authority/32UF,Economic Development,Grants and Contributions to Outside Bodies - No Service Received,15/02/2022,30011817,"6,495.00 ",Tillys Garden Party Hire,,
South Holland District Council,http://statistics.data.gov.uk/id/local-authority/32UF,Economic Development,Grants and Contributions to Outside Bodies - No Service Received,15/02/2022,30011827,"1,840.00 ",Cupids Wedding Shows Limited,,
South Holland District Council,http://statistics.data.gov.uk/id/local-authority/32UF,Economic Development,Grants and Contributions to Outside Bodies - No Service Received,15/02/2022,30011924,"6,305.16 ",Helen Lindores Design Ltd,,
South Holland District Council,http://statistics.data.gov.uk/id/local-authority/32UF,Economic Development,Grants and Contributions to Outside Bodies - No Service Received,17/02/2022,30011978,"10,000.00 ",P and L Briggs Limited,,
South Holland District Council,http://statistics.data.gov.uk/id/local-authority/32UF,Economic Development,Grants and Contributions to Outside Bodies - No Service Received,17/02/2022,30011979,"4,895.00 ",Shadow Consultancy Limited,,
South Holland District Council,http://statistics.data.gov.uk/id/local-authority/32UF,Economic Development,Grants and Contributions to Outside Bodies - No Service Received,22/02/2022,30012052,"24,999.00 ",Chafer Machinery Ltd,,
South Holland District Council,http://statistics.data.gov.uk/id/local-authority/32UF,Economic Development,Grants and Contributions to Outside Bodies - No Service Received,22/02/2022,30012124,"3,609.00 ",Fair Share Group Ltd,,
South Holland District Council,http://statistics.data.gov.uk/id/local-authority/32UF,Economic Development,Grants and Contributions to Outside Bodies - No Service Received,24/02/2022,30012246,"23,000.00 ",Cars2Trucks Ltd,,
South Holland District Council,http://statistics.data.gov.uk/id/local-authority/32UF,Economic Development,Grants and Contributions to Outside Bodies - No Service Received,24/02/2022,30012248,"9,624.00 ",Fancy Frox Ltd,,
South Holland District Council,http://statistics.data.gov.uk/id/local-authority/32UF,Economic Development,Grants and Contributions to Outside Bodies - No Service Received,24/02/2022,30012250,"11,000.00 ",Molsom & Associates Ltd,,
South Holland District Council,http://statistics.data.gov.uk/id/local-authority/32UF,Economic Development,Grants and Contributions to Outside Bodies - No Service Received,24/02/2022,30012251,"2,210.00 ",Caz's Cakes & Sugarcraft,,
South Holland District Council,http://statistics.data.gov.uk/id/local-authority/32UF,Economic Development,Grants and Contributions to Outside Bodies - No Service Received,24/02/2022,30012254,"3,435.16 ",Tigers Bar & Social Club Ltd,,
South Holland District Council,http://statistics.data.gov.uk/id/local-authority/32UF,Economic Development,Grants and Contributions to Outside Bodies - No Service Received,24/02/2022,30012255,"10,000.00 ",County Kitchens (Pinchbeck) Ltd,,
South Holland District Council,http://statistics.data.gov.uk/id/local-authority/32UF,Economic Development,Grants and Contributions to Outside Bodies - No Service Received,01/03/2022,30012285,"5,957.00 ",Pledgers Ltd,,
South Holland District Council,http://statistics.data.gov.uk/id/local-authority/32UF,Economic Development,Grants and Contributions to Outside Bodies - No Service Received,01/03/2022,30012286,"15,000.00 ",Kim & Sim Ltd,,
South Holland District Council,http://statistics.data.gov.uk/id/local-authority/32UF,Economic Development,Professional and Contractors Fees,10/02/2022,30011269,718.75 ,Michael Page Internat Recruitment Ltd,,
South Holland District Council,http://statistics.data.gov.uk/id/local-authority/32UF,Economic Development,Professional and Contractors Fees,10/02/2022,30011697,"4,737.00 ",Kudos Project Management,,
South Holland District Council,http://statistics.data.gov.uk/id/local-authority/32UF,Economic Development,Professional and Contractors Fees,15/02/2022,30011709,662.50 ,Michael Page Internat Recruitment Ltd,,
South Holland District Council,http://statistics.data.gov.uk/id/local-authority/32UF,Economic Development,Professional and Contractors Fees,15/02/2022,30011787,"1,150.00 ",Social Change UK,,
South Holland District Council,http://statistics.data.gov.uk/id/local-authority/32UF,Environmental Services,Agency Staff,01/02/2022,30011268,"3,023.09 ",Encore Personnel Services Ltd,,
South Holland District Council,http://statistics.data.gov.uk/id/local-authority/32UF,Environmental Services,Agency Staff,01/02/2022,30011271,"1,803.90 ",Integrity Plus Ltd,,
South Holland District Council,http://statistics.data.gov.uk/id/local-authority/32UF,Environmental Services,Agency Staff,01/02/2022,30011272,"2,962.64 ",Essential Staffing Ltd,,
South Holland District Council,http://statistics.data.gov.uk/id/local-authority/32UF,Environmental Services,Agency Staff,01/02/2022,30011283,592.00 ,Steves Garden and Household Services,,
South Holland District Council,http://statistics.data.gov.uk/id/local-authority/32UF,Environmental Services,Agency Staff,15/02/2022,30011287,"1,437.63 ",Questech Recruitment Limited,,
South Holland District Council,http://statistics.data.gov.uk/id/local-authority/32UF,Environmental Services,Agency Staff,22/02/2022,30011410,"1,219.00 ",Questech Recruitment Limited,,
South Holland District Council,http://statistics.data.gov.uk/id/local-authority/32UF,Environmental Services,Agency Staff,22/02/2022,30011441,"1,890.48 ",Blue Arrow Ltd,,
South Holland District Council,http://statistics.data.gov.uk/id/local-authority/32UF,Environmental Services,Agency Staff,08/02/2022,30011452,"2,476.96 ",The Best Connection Group Ltd,,
South Holland District Council,http://statistics.data.gov.uk/id/local-authority/32UF,Environmental Services,Agency Staff,08/02/2022,30011453,"3,065.96 ",The Best Connection Group Ltd,,
South Holland District Council,http://statistics.data.gov.uk/id/local-authority/32UF,Environmental Services,Agency Staff,08/02/2022,30011455,"1,356.72 ",Capital Outsourcing Group Food,,
South Holland District Council,http://statistics.data.gov.uk/id/local-authority/32UF,Environmental Services,Agency Staff,22/02/2022,30011456,"1,065.60 ",Quality Service Recruitment Ltd,,
South Holland District Council,http://statistics.data.gov.uk/id/local-authority/32UF,Environmental Services,Agency Staff,15/02/2022,30011481,"1,456.45 ",Blue Arrow Ltd,,
South Holland District Council,http://statistics.data.gov.uk/id/local-authority/32UF,Environmental Services,Agency Staff,08/02/2022,30011488,"3,550.67 ",Essential Staffing Ltd,,
South Holland District Council,http://statistics.data.gov.uk/id/local-authority/32UF,Environmental Services,Agency Staff,01/03/2022,30011605,"1,152.75 ",Questech Recruitment Limited,,
South Holland District Council,http://statistics.data.gov.uk/id/local-authority/32UF,Environmental Services,Agency Staff,08/02/2022,30011607,"3,574.49 ",247 Personnel Ltd,,
South Holland District Council,http://statistics.data.gov.uk/id/local-authority/32UF,Environmental Services,Agency Staff,24/02/2022,30011608,"1,071.86 ",Capital Outsourcing Group Food,,
South Holland District Council,http://statistics.data.gov.uk/id/local-authority/32UF,Environmental Services,Agency Staff,01/03/2022,30011615,"1,848.93 ",Blue Arrow Ltd,,
South Holland District Council,http://statistics.data.gov.uk/id/local-authority/32UF,Environmental Services,Agency Staff,08/02/2022,30011616,"2,416.94 ",Encore Personnel Services Ltd,,
South Holland District Council,http://statistics.data.gov.uk/id/local-authority/32UF,Environmental Services,Agency Staff,08/02/2022,30011662,"9,649.15 ",NJW Services,,
South Holland District Council,http://statistics.data.gov.uk/id/local-authority/32UF,Environmental Services,Agency Staff,01/03/2022,30011713,774.40 ,Quality Service Recruitment Ltd,,
South Holland District Council,http://statistics.data.gov.uk/id/local-authority/32UF,Environmental Services,Agency Staff,17/02/2022,30011990,"3,278.42 ",Essential Staffing Ltd,,
South Holland District Council,http://statistics.data.gov.uk/id/local-authority/32UF,Environmental Services,Agency Staff,17/02/2022,30011991,"3,627.98 ",The Best Connection Group Ltd,,
South Holland District Council,http://statistics.data.gov.uk/id/local-authority/32UF,Environmental Services,Agency Staff,17/02/2022,30011992,"2,942.89 ",The Best Connection Group Ltd,,
South Holland District Council,http://statistics.data.gov.uk/id/local-authority/32UF,Environmental Services,Agency Staff,22/02/2022,30012008,"1,390.80 ",Integrity Plus Ltd,,
South Holland District Council,http://statistics.data.gov.uk/id/local-authority/32UF,Environmental Services,Agency Staff,22/02/2022,30012009,"1,614.56 ",Integrity Plus Ltd,,
South Holland District Council,http://statistics.data.gov.uk/id/local-authority/32UF,Environmental Services,Agency Staff,22/02/2022,30012010,"3,089.83 ",The Best Connection Group Ltd,,
South Holland District Council,http://statistics.data.gov.uk/id/local-authority/32UF,Environmental Services,Agency Staff,22/02/2022,30012011,"2,805.40 ",The Best Connection Group Ltd,,
South Holland District Council,http://statistics.data.gov.uk/id/local-authority/32UF,Environmental Services,Agency Staff,22/02/2022,30012016,651.29 ,247 Personnel Ltd,,
South Holland District Council,http://statistics.data.gov.uk/id/local-authority/32UF,Environmental Services,Agency Staff,22/02/2022,30012018,592.00 ,Quality Service Recruitment Ltd,,
South Holland District Council,http://statistics.data.gov.uk/id/local-authority/32UF,Environmental Services,Agency Staff,22/02/2022,30012021,"3,082.52 ",Essential Staffing Ltd,,
South Holland District Council,http://statistics.data.gov.uk/id/local-authority/32UF,Environmental Services,Agency Staff,22/02/2022,30012148,592.00 ,DAVE ROSE TRANSPORT LTD,,
South Holland District Council,http://statistics.data.gov.uk/id/local-authority/32UF,Environmental Services,Agency Staff,24/02/2022,30012273,"1,253.56 ",247 Personnel Ltd,,
South Holland District Council,http://statistics.data.gov.uk/id/local-authority/32UF,Environmental Services,Agency Staff,24/02/2022,30012274,"1,128.20 ",247 Personnel Ltd,,
South Holland District Council,http://statistics.data.gov.uk/id/local-authority/32UF,Environmental Services,Agency Staff,24/02/2022,30012275,471.53 ,247 Personnel Ltd,,
South Holland District Council,http://statistics.data.gov.uk/id/local-authority/32UF,Environmental Services,Agency Staff,01/03/2022,30012463,424.76 ,Capital Outsourcing Group Food,,
South Holland District Council,http://statistics.data.gov.uk/id/local-authority/32UF,Environmental Services,Agency Staff,01/03/2022,30012465,"2,782.40 ",The Best Connection Group Ltd,,
South Holland District Council,http://statistics.data.gov.uk/id/local-authority/32UF,Environmental Services,Agency Staff,01/03/2022,30012466,"3,574.49 ",247 Personnel Ltd,,
South Holland District Council,http://statistics.data.gov.uk/id/local-authority/32UF,Environmental Services,Agency Staff,01/03/2022,30012468,441.78 ,247 Personnel Ltd,,
South Holland District Council,http://statistics.data.gov.uk/id/local-authority/32UF,Environmental Services,Agency Staff,01/03/2022,30012499,510.60 ,Essential Staffing Ltd,,
South Holland District Council,http://statistics.data.gov.uk/id/local-authority/32UF,Environmental Services,Agency Staff,01/03/2022,30012500,"2,189.29 ",Encore Personnel Services Ltd,,
South Holland District Council,http://statistics.data.gov.uk/id/local-authority/32UF,Environmental Services,Agency Staff,01/03/2022,30012501,"6,150.78 ",Integrity Plus Ltd,,
South Holland District Council,http://statistics.data.gov.uk/id/local-authority/32UF,Environmental Services,Agency Staff,01/03/2022,30012502,"5,591.65 ",Integrity Plus Ltd,,
South Holland District Council,http://statistics.data.gov.uk/id/local-authority/32UF,Environmental Services,Agency Staff,01/03/2022,30012503,"3,146.05 ",Integrity Plus Ltd,,
South Holland District Council,http://statistics.data.gov.uk/id/local-authority/32UF,Environmental Services,Clothing Uniforms and Laundry,24/02/2022,30011412,647.28 ,SMI Group,,
South Holland District Council,http://statistics.data.gov.uk/id/local-authority/32UF,Environmental Services,Clothing Uniforms and Laundry,24/02/2022,30012197,467.50 ,Sign Design Services Ltd,,
South Holland District Council,http://statistics.data.gov.uk/id/local-authority/32UF,Environmental Services,Commercial Vehicle Lease Payments (Less than 12 months),01/03/2022,30011585,"1,732.66 ",Go Plant Fleet Services,,
South Holland District Council,http://statistics.data.gov.uk/id/local-authority/32UF,Environmental Services,Fuel and Oil,03/02/2022,30011362,"7,580.20 ",C H Jones Ltd,,
South Holland District Council,http://statistics.data.gov.uk/id/local-authority/32UF,Environmental Services,Fuel and Oil,08/02/2022,30011606,"7,626.68 ",C H Jones Ltd,,
South Holland District Council,http://statistics.data.gov.uk/id/local-authority/32UF,Environmental Services,Fuel and Oil,22/02/2022,30012007,"8,002.42 ",C H Jones Ltd,,
South Holland District Council,http://statistics.data.gov.uk/id/local-authority/32UF,Environmental Services,Fuel and Oil,22/02/2022,30012155,"8,476.53 ",C H Jones Ltd,,
South Holland District Council,http://statistics.data.gov.uk/id/local-authority/32UF,Environmental Services,Furniture and Equipment,24/02/2022,30011209,575.00 ,Vision Techniques U K Ltd,,
South Holland District Council,http://statistics.data.gov.uk/id/local-authority/32UF,Environmental Services,Furniture and Equipment,17/02/2022,30011575,878.25 ,Chisletts (Spalding) Ltd,,
South Holland District Council,http://statistics.data.gov.uk/id/local-authority/32UF,Environmental Services,Furniture and Equipment,01/03/2022,30012443,588.00 ,Spaldings (UK) Ltd,,
South Holland District Council,http://statistics.data.gov.uk/id/local-authority/32UF,Environmental Services,Grounds Maintenance Contract (External),24/02/2022,30012204,"2,350.00 ",Greenscape Tree Safe Ltd,,
South Holland District Council,http://statistics.data.gov.uk/id/local-authority/32UF,Environmental Services,Grounds Maintenance Contract (External),01/03/2022,30012279,"4,595.00 ",Greenscape Tree Safe Ltd,,
South Holland District Council,http://statistics.data.gov.uk/id/local-authority/32UF,Environmental Services,Materials and Consumables,17/02/2022,30011320,925.56 ,Berry BPI Refuse,,
South Holland District Council,http://statistics.data.gov.uk/id/local-authority/32UF,Environmental Services,Materials and Consumables,22/02/2022,30011381,453.75 ,Worksafe Direct UK Limited,,
South Holland District Council,http://statistics.data.gov.uk/id/local-authority/32UF,Environmental Services,Materials and Consumables,17/02/2022,30011433,"1,163.96 ",PHS Group,,
South Holland District Council,http://statistics.data.gov.uk/id/local-authority/32UF,Environmental Services,Materials and Consumables,24/02/2022,30011434,"7,258.68 ",Berry BPI Refuse,,
South Holland District Council,http://statistics.data.gov.uk/id/local-authority/32UF,Environmental Services,Materials and Consumables,24/02/2022,30011435,"2,210.60 ",Berry BPI Refuse,,
South Holland District Council,http://statistics.data.gov.uk/id/local-authority/32UF,Environmental Services,Materials and Consumables,01/03/2022,30011450,"6,894.89 ",Berry BPI Refuse,,
South Holland District Council,http://statistics.data.gov.uk/id/local-authority/32UF,Environmental Services,Professional and Contractors Fees,24/02/2022,30011210,"1,150.00 ",Weaar,,
South Holland District Council,http://statistics.data.gov.uk/id/local-authority/32UF,Environmental Services,Professional and Contractors Fees,10/02/2022,30011345,"2,346.96 ",GBSG Ltd,,
South Holland District Council,http://statistics.data.gov.uk/id/local-authority/32UF,Environmental Services,Professional and Contractors Fees,01/03/2022,30011660,942.17 ,Kings Armoured Security Services Ltd,,
South Holland District Council,http://statistics.data.gov.uk/id/local-authority/32UF,Environmental Services,Professional and Contractors Fees,08/02/2022,30011699,"1,900.00 ",Weaar,,
South Holland District Council,http://statistics.data.gov.uk/id/local-authority/32UF,Environmental Services,Professional and Contractors Fees,08/02/2022,30011700,"2,200.00 ",Weaar,,
South Holland District Council,http://statistics.data.gov.uk/id/local-authority/32UF,Environmental Services,Professional and Contractors Fees,01/03/2022,30012140,"1,602.54 ",Lincolnshire County Council,,
South Holland District Council,http://statistics.data.gov.uk/id/local-authority/32UF,Environmental Services,Professional and Contractors Fees,01/03/2022,30012481,719.40 ,Lincolnshire County Council,,
South Holland District Council,http://statistics.data.gov.uk/id/local-authority/32UF,Environmental Services,Tyres,01/02/2022,30011282,"4,523.00 ",Vaculug Technologies Ltd,,
South Holland District Council,http://statistics.data.gov.uk/id/local-authority/32UF,Environmental Services,Tyres,01/03/2022,30012485,"4,523.00 ",Vaculug Technologies Ltd,,
South Holland District Council,http://statistics.data.gov.uk/id/local-authority/32UF,Environmental Services,Workshop Parts,10/02/2022,30011277,"3,120.33 ",Fleet Factors Ltd,,
South Holland District Council,http://statistics.data.gov.uk/id/local-authority/32UF,Environmental Services,Workshop Parts,01/02/2022,30011296,644.78 ,S and M Springs,,
South Holland District Council,http://statistics.data.gov.uk/id/local-authority/32UF,Environmental Services,Workshop Parts,17/02/2022,30011374,"1,563.89 ",Fleet Factors Ltd,,
South Holland District Council,http://statistics.data.gov.uk/id/local-authority/32UF,Environmental Services,Workshop Parts,17/02/2022,30011666,"1,682.45 ",Dennis Eagle,,
South Holland District Council,http://statistics.data.gov.uk/id/local-authority/32UF,Environmental Services,Workshop Parts,24/02/2022,30011677,"3,281.60 ",Fleet Factors Ltd,,
South Holland District Council,http://statistics.data.gov.uk/id/local-authority/32UF,Environmental Services,Workshop Parts,24/02/2022,30011932,807.00 ,Ray Larrington Hydraulics (Brothertoft) Ltd,,
South Holland District Council,http://statistics.data.gov.uk/id/local-authority/32UF,Environmental Services,Workshop Parts,01/03/2022,30012476,738.80 ,S and M Springs,,
South Holland District Council,http://statistics.data.gov.uk/id/local-authority/32UF,Finance,External Audit Fees,03/02/2022,30010624,"19,934.00 ",Ernst and Young LLP,,
South Holland District Council,http://statistics.data.gov.uk/id/local-authority/32UF,Finance,External Audit Fees,24/02/2022,30011228,"25,719.75 ",Ernst and Young LLP,,
South Holland District Council,http://statistics.data.gov.uk/id/local-authority/32UF,Finance,Grants and Contributions to Outside Bodies - No Service Received,10/02/2022,30011758,"40,000.00 ",Charis Grants Ltd,,
South Holland District Council,http://statistics.data.gov.uk/id/local-authority/32UF,Finance,Grants and Contributions to Outside Bodies - No Service Received,15/02/2022,30011956,"40,000.00 ",Charis Grants Ltd,,
South Holland District Council,http://statistics.data.gov.uk/id/local-authority/32UF,Finance,Insurance,15/02/2022,30011026,"12,686.40 ",Speedy Asset Services Ltd,,
South Holland District Council,http://statistics.data.gov.uk/id/local-authority/32UF,Finance,Postages,22/02/2022,30011486,"10,000.00 ",Public Sector Partnership Services Ltd,,
South Holland District Council,http://statistics.data.gov.uk/id/local-authority/32UF,Finance,Public Sector Partnership Services,01/03/2022,30012264,"257,205.75 ",Public Sector Partnership Services Ltd,,
South Holland District Council,http://statistics.data.gov.uk/id/local-authority/32UF,Finance,Purchase of Hardware,01/03/2022,30011977,"2,622.30 ",Specialist Computer Centres PLC,,
South Holland District Council,http://statistics.data.gov.uk/id/local-authority/32UF,Finance,Purchase of Hardware,01/03/2022,30012208,"28,279.36 ",Ballicom International,,
South Holland District Council,http://statistics.data.gov.uk/id/local-authority/32UF,Housing,Agency Staff,03/02/2022,30011190,"3,860.00 ",Park Avenue Recruitment Ltd,,
South Holland District Council,http://statistics.data.gov.uk/id/local-authority/32UF,Housing,Agency Staff,03/02/2022,30011211,398.86 ,Integrity Plus Ltd,,
South Holland District Council,http://statistics.data.gov.uk/id/local-authority/32UF,Housing,Agency Staff,08/02/2022,30011600,398.86 ,Integrity Plus Ltd,,
South Holland District Council,http://statistics.data.gov.uk/id/local-authority/32UF,Housing,Agency Staff,10/02/2022,30011601,"2,750.00 ",Park Avenue Recruitment Ltd,,
South Holland District Council,http://statistics.data.gov.uk/id/local-authority/32UF,Housing,Agency Staff,01/03/2022,30012372,382.69 ,Integrity Plus Ltd,,
South Holland District Council,http://statistics.data.gov.uk/id/local-authority/32UF,Housing,Bed and Breakfast Accommodation (Homelessness Service),01/02/2022,30011032,"1,100.00 ",Riverside Hotel,,
South Holland District Council,http://statistics.data.gov.uk/id/local-authority/32UF,Housing,Bed and Breakfast Accommodation (Homelessness Service),01/02/2022,30011043,586.67 ,the Anchor Inn,,
South Holland District Council,http://statistics.data.gov.uk/id/local-authority/32UF,Housing,Bed and Breakfast Accommodation (Homelessness Service),08/02/2022,30011304,540.00 ,Anglia Motel,,
South Holland District Council,http://statistics.data.gov.uk/id/local-authority/32UF,Housing,Bed and Breakfast Accommodation (Homelessness Service),08/02/2022,30011305,875.00 ,Anglia Motel,,
South Holland District Council,http://statistics.data.gov.uk/id/local-authority/32UF,Housing,Bed and Breakfast Accommodation (Homelessness Service),08/02/2022,30011307,875.00 ,Anglia Motel,,
South Holland District Council,http://statistics.data.gov.uk/id/local-authority/32UF,Housing,Bed and Breakfast Accommodation (Homelessness Service),08/02/2022,30011308,945.00 ,Anglia Motel,,
South Holland District Council,http://statistics.data.gov.uk/id/local-authority/32UF,Housing,Bed and Breakfast Accommodation (Homelessness Service),08/02/2022,30011309,490.00 ,Anglia Motel,,
South Holland District Council,http://statistics.data.gov.uk/id/local-authority/32UF,Housing,Bed and Breakfast Accommodation (Homelessness Service),08/02/2022,30011310,490.00 ,Anglia Motel,,
South Holland District Council,http://statistics.data.gov.uk/id/local-authority/32UF,Housing,Bed and Breakfast Accommodation (Homelessness Service),08/02/2022,30011311,490.00 ,Anglia Motel,,
South Holland District Council,http://statistics.data.gov.uk/id/local-authority/32UF,Housing,Bed and Breakfast Accommodation (Homelessness Service),08/02/2022,30011312,490.00 ,Anglia Motel,,
South Holland District Council,http://statistics.data.gov.uk/id/local-authority/32UF,Housing,Bed and Breakfast Accommodation (Homelessness Service),08/02/2022,30011314,"1,012.50 ",Anglia Motel,,
South Holland District Council,http://statistics.data.gov.uk/id/local-authority/32UF,Housing,Bed and Breakfast Accommodation (Homelessness Service),08/02/2022,30011315,490.00 ,Anglia Motel,,
South Holland District Council,http://statistics.data.gov.uk/id/local-authority/32UF,Housing,Bed and Breakfast Accommodation (Homelessness Service),08/02/2022,30011316,490.00 ,Anglia Motel,,
South Holland District Council,http://statistics.data.gov.uk/id/local-authority/32UF,Housing,Bed and Breakfast Accommodation (Homelessness Service),08/02/2022,30011317,560.00 ,Anglia Motel,,
South Holland District Council,http://statistics.data.gov.uk/id/local-authority/32UF,Housing,Bed and Breakfast Accommodation (Homelessness Service),08/02/2022,30011318,490.00 ,Anglia Motel,,
South Holland District Council,http://statistics.data.gov.uk/id/local-authority/32UF,Housing,Bed and Breakfast Accommodation (Homelessness Service),08/02/2022,30011319,490.00 ,Anglia Motel,,
South Holland District Council,http://statistics.data.gov.uk/id/local-authority/32UF,Housing,Bed and Breakfast Accommodation (Homelessness Service),03/02/2022,30011327,746.67 ,the Anchor Inn,,
South Holland District Council,http://statistics.data.gov.uk/id/local-authority/32UF,Housing,Bed and Breakfast Accommodation (Homelessness Service),10/02/2022,30011681,490.00 ,Anglia Motel,,
South Holland District Council,http://statistics.data.gov.uk/id/local-authority/32UF,Housing,Bed and Breakfast Accommodation (Homelessness Service),10/02/2022,30011682,490.00 ,Anglia Motel,,
South Holland District Council,http://statistics.data.gov.uk/id/local-authority/32UF,Housing,Bed and Breakfast Accommodation (Homelessness Service),10/02/2022,30011683,490.00 ,Anglia Motel,,
South Holland District Council,http://statistics.data.gov.uk/id/local-authority/32UF,Housing,Bed and Breakfast Accommodation (Homelessness Service),10/02/2022,30011684,560.00 ,Anglia Motel,,
South Holland District Council,http://statistics.data.gov.uk/id/local-authority/32UF,Housing,Bed and Breakfast Accommodation (Homelessness Service),15/02/2022,30011685,490.00 ,Anglia Motel,,
South Holland District Council,http://statistics.data.gov.uk/id/local-authority/32UF,Housing,Bed and Breakfast Accommodation (Homelessness Service),10/02/2022,30011686,490.00 ,Anglia Motel,,
South Holland District Council,http://statistics.data.gov.uk/id/local-authority/32UF,Housing,Bed and Breakfast Accommodation (Homelessness Service),10/02/2022,30011687,945.00 ,Anglia Motel,,
South Holland District Council,http://statistics.data.gov.uk/id/local-authority/32UF,Housing,Bed and Breakfast Accommodation (Homelessness Service),10/02/2022,30011688,490.00 ,Anglia Motel,,
South Holland District Council,http://statistics.data.gov.uk/id/local-authority/32UF,Housing,Bed and Breakfast Accommodation (Homelessness Service),15/02/2022,30011689,607.50 ,Anglia Motel,,
South Holland District Council,http://statistics.data.gov.uk/id/local-authority/32UF,Housing,Bed and Breakfast Accommodation (Homelessness Service),15/02/2022,30011690,490.00 ,Anglia Motel,,
South Holland District Council,http://statistics.data.gov.uk/id/local-authority/32UF,Housing,Bed and Breakfast Accommodation (Homelessness Service),10/02/2022,30011691,945.00 ,Anglia Motel,,
South Holland District Council,http://statistics.data.gov.uk/id/local-authority/32UF,Housing,Bed and Breakfast Accommodation (Homelessness Service),10/02/2022,30011692,540.00 ,Anglia Motel,,
South Holland District Council,http://statistics.data.gov.uk/id/local-authority/32UF,Housing,Bed and Breakfast Accommodation (Homelessness Service),10/02/2022,30011693,875.00 ,Anglia Motel,,
South Holland District Council,http://statistics.data.gov.uk/id/local-authority/32UF,Housing,Bed and Breakfast Accommodation (Homelessness Service),10/02/2022,30011694,945.00 ,Anglia Motel,,
South Holland District Council,http://statistics.data.gov.uk/id/local-authority/32UF,Housing,Bed and Breakfast Accommodation (Homelessness Service),15/02/2022,30011695,875.00 ,Anglia Motel,,
South Holland District Council,http://statistics.data.gov.uk/id/local-authority/32UF,Housing,Bed and Breakfast Accommodation (Homelessness Service),24/02/2022,30012191,746.67 ,G and A Hotels T A Woodlands Hotel,,
South Holland District Council,http://statistics.data.gov.uk/id/local-authority/32UF,Housing,Computer Software Licence Costs,24/02/2022,30011416,288.84 ,Phoenix Software Ltd,,
South Holland District Council,http://statistics.data.gov.uk/id/local-authority/32UF,Housing,Computer Software Purchase,24/02/2022,30011416,460.08 ,Phoenix Software Ltd,,
South Holland District Council,http://statistics.data.gov.uk/id/local-authority/32UF,Housing,Grants and Contributions to Outside Bodies - No Service Received,03/02/2022,30011358,533.47 ,Lincolnshire Rural Housing Association Ltd,,
South Holland District Council,http://statistics.data.gov.uk/id/local-authority/32UF,Housing,Grants and Contributions to Outside Bodies - No Service Received,08/02/2022,30011469,"3,539.34 ",M P L Home Improvements,,
South Holland District Council,http://statistics.data.gov.uk/id/local-authority/32UF,Housing,Grants and Contributions to Outside Bodies - No Service Received,17/02/2022,30011485,890.00 ,Stuart Taplin Plumbing and Build Maint,,
South Holland District Council,http://statistics.data.gov.uk/id/local-authority/32UF,Housing,Legal Fees,01/03/2022,30011567,"1,000.00 ",Capsticks Solicitors LLP,,
South Holland District Council,http://statistics.data.gov.uk/id/local-authority/32UF,Housing,License Fees,24/02/2022,30011416,"2,203.92 ",Phoenix Software Ltd,,
South Holland District Council,http://statistics.data.gov.uk/id/local-authority/32UF,Housing,Loans,08/02/2022,30011643,"102,178.00 ",Birketts Solicitors LLP,,
South Holland District Council,http://statistics.data.gov.uk/id/local-authority/32UF,Housing,Professional and Contractors Fees,24/02/2022,30011712,313.00 ,Language Line Ltd,,
South Holland District Council,http://statistics.data.gov.uk/id/local-authority/32UF,Housing,Professional Fees,02/03/2022,30011728,"3,431.00 ",Birketts Solicitors LLP,,
South Holland District Council,http://statistics.data.gov.uk/id/local-authority/32UF,Housing,Purchase of Buildings,02/03/2022,30011728,"196,800.00 ",Birketts Solicitors LLP,,
South Holland District Council,http://statistics.data.gov.uk/id/local-authority/32UF,Housing,"Purchase of Plant, Machinery and Equipment",10/02/2022,30009612,"2,062.14 ",Hughes Trade,,
South Holland District Council,http://statistics.data.gov.uk/id/local-authority/32UF,Housing,Subscriptions to Organisations and Other Bodies,24/02/2022,30011416,153.36 ,Phoenix Software Ltd,,
South Holland District Council,http://statistics.data.gov.uk/id/local-authority/32UF,Housing,Works to Buildings (Main Contractor),17/02/2022,30011823,"20,453.80 ",D Brown Building Contractors Ltd,,
South Holland District Council,http://statistics.data.gov.uk/id/local-authority/32UF,Housing Landlord Manager,Agency Staff,03/02/2022,30011211,170.94 ,Integrity Plus Ltd,,
South Holland District Council,http://statistics.data.gov.uk/id/local-authority/32UF,Housing Landlord Manager,Agency Staff,10/02/2022,30011353,902.22 ,Niyaa People,,
South Holland District Council,http://statistics.data.gov.uk/id/local-authority/32UF,Housing Landlord Manager,Agency Staff,08/02/2022,30011600,170.94 ,Integrity Plus Ltd,,
South Holland District Council,http://statistics.data.gov.uk/id/local-authority/32UF,Housing Landlord Manager,Agency Staff,17/02/2022,30011780,903.94 ,Niyaa People,,
South Holland District Council,http://statistics.data.gov.uk/id/local-authority/32UF,Housing Landlord Manager,Agency Staff,01/03/2022,30012322,975.00 ,James Andrew,,
South Holland District Council,http://statistics.data.gov.uk/id/local-authority/32UF,Housing Landlord Manager,Agency Staff,01/03/2022,30012372,164.01 ,Integrity Plus Ltd,,
South Holland District Council,http://statistics.data.gov.uk/id/local-authority/32UF,Housing Landlord Manager,Buildings Maintenance - Responsive,17/02/2022,30011805,683.30 ,andrew Hicks Ltd,,
South Holland District Council,http://statistics.data.gov.uk/id/local-authority/32UF,Housing Landlord Manager,Buildings Maintenance - Responsive,15/02/2022,30011839,"6,614.00 ",M and R Glass and Glazing Ltd,,
South Holland District Council,http://statistics.data.gov.uk/id/local-authority/32UF,Housing Landlord Manager,Buildings Maintenance - Responsive,15/02/2022,30011842,"1,710.00 ",Boors Ltd,,
South Holland District Council,http://statistics.data.gov.uk/id/local-authority/32UF,Housing Landlord Manager,Buildings Maintenance - Responsive,01/03/2022,30012317,"3,337.60 ",M and R Glass and Glazing Ltd,,
South Holland District Council,http://statistics.data.gov.uk/id/local-authority/32UF,Housing Landlord Manager,Cleaning Contract,03/02/2022,30011321,577.80 ,Veolia Es UK Ltd,,
South Holland District Council,http://statistics.data.gov.uk/id/local-authority/32UF,Housing Landlord Manager,Cleaning Contract,01/03/2022,30011837,525.87 ,Veolia Es UK Ltd,,
South Holland District Council,http://statistics.data.gov.uk/id/local-authority/32UF,Housing Landlord Manager,Computer Hardware Purchase,17/02/2022,30011432,"1,063.59 ",CCS Media Limited,,
South Holland District Council,http://statistics.data.gov.uk/id/local-authority/32UF,Housing Landlord Manager,Computer Software Licence Costs,24/02/2022,30011249,"2,190.56 ",Automico Ltd,,
South Holland District Council,http://statistics.data.gov.uk/id/local-authority/32UF,Housing Landlord Manager,Computer Software Purchase,24/02/2022,30011416,153.36 ,Phoenix Software Ltd,,
South Holland District Council,http://statistics.data.gov.uk/id/local-authority/32UF,Housing Landlord Manager,Electricity,15/02/2022,30011497,432.35 ,Total Energies,,
South Holland District Council,http://statistics.data.gov.uk/id/local-authority/32UF,Housing Landlord Manager,Electricity,15/02/2022,30011520,753.60 ,Total Energies,,
South Holland District Council,http://statistics.data.gov.uk/id/local-authority/32UF,Housing Landlord Manager,External Painting Repairs,15/02/2022,30011768,"17,593.86 ",Mitie Property Services UK Ltd,,
South Holland District Council,http://statistics.data.gov.uk/id/local-authority/32UF,Housing Landlord Manager,Fuel and Oil,03/02/2022,30011362,668.08 ,C H Jones Ltd,,
South Holland District Council,http://statistics.data.gov.uk/id/local-authority/32UF,Housing Landlord Manager,Fuel and Oil,08/02/2022,30011606,679.69 ,C H Jones Ltd,,
South Holland District Council,http://statistics.data.gov.uk/id/local-authority/32UF,Housing Landlord Manager,Fuel and Oil,22/02/2022,30012007,899.31 ,C H Jones Ltd,,
South Holland District Council,http://statistics.data.gov.uk/id/local-authority/32UF,Housing Landlord Manager,Fuel and Oil,22/02/2022,30012155,548.79 ,C H Jones Ltd,,
South Holland District Council,http://statistics.data.gov.uk/id/local-authority/32UF,Housing Landlord Manager,Furniture and Equipment,10/02/2022,30011231,992.25 ,Stannah,,
South Holland District Council,http://statistics.data.gov.uk/id/local-authority/32UF,Housing Landlord Manager,Furniture and Equipment,24/02/2022,30011240,882.36 ,Stannah,,
South Holland District Council,http://statistics.data.gov.uk/id/local-authority/32UF,Housing Landlord Manager,Furniture and Equipment,24/02/2022,30011647,652.50 ,Tunstall Healthcare UK Ltd,,
South Holland District Council,http://statistics.data.gov.uk/id/local-authority/32UF,Housing Landlord Manager,Furniture and Equipment,01/03/2022,30011733,483.43 ,Veolia Es UK Ltd,,
South Holland District Council,http://statistics.data.gov.uk/id/local-authority/32UF,Housing Landlord Manager,Gas Servicing,01/03/2022,30011796,"21,423.97 ",Aaron Services Ltd,,
South Holland District Council,http://statistics.data.gov.uk/id/local-authority/32UF,Housing Landlord Manager,Grounds Maintenance Contract (External),03/02/2022,30011048,"1,800.00 ",Greenscape Tree Safe Ltd,,
South Holland District Council,http://statistics.data.gov.uk/id/local-authority/32UF,Housing Landlord Manager,Grounds Maintenance Contract (External),08/02/2022,30011385,"1,050.00 ",Greenscape Tree Safe Ltd,,
South Holland District Council,http://statistics.data.gov.uk/id/local-authority/32UF,Housing Landlord Manager,Grounds Maintenance Contract (External),17/02/2022,30011755,"2,500.00 ",Greenscape Tree Safe Ltd,,
South Holland District Council,http://statistics.data.gov.uk/id/local-authority/32UF,Housing Landlord Manager,Grounds Maintenance Contract (External),01/03/2022,30012303,500.00 ,Greenscape Tree Safe Ltd,,
South Holland District Council,http://statistics.data.gov.uk/id/local-authority/32UF,Housing Landlord Manager,Grounds Maintenance Contract (External),01/03/2022,30012304,"2,800.00 ",Greenscape Tree Safe Ltd,,
South Holland District Council,http://statistics.data.gov.uk/id/local-authority/32UF,Housing Landlord Manager,Grounds Maintenance Contract (External),01/03/2022,30012427,"2,550.00 ",N J Pacey Landscaping Ltd,,
South Holland District Council,http://statistics.data.gov.uk/id/local-authority/32UF,Housing Landlord Manager,Legal Fees,24/02/2022,30011568,531.00 ,Capsticks Solicitors LLP,,
South Holland District Council,http://statistics.data.gov.uk/id/local-authority/32UF,Housing Landlord Manager,Materials and Consumables,10/02/2022,30011718,711.84 ,Grafton Merchanting GB Ltd,,
South Holland District Council,http://statistics.data.gov.uk/id/local-authority/32UF,Housing Landlord Manager,Professional and Contractors Fees,24/02/2022,30011392,"4,000.00 ",KPMG LLP,,
South Holland District Council,http://statistics.data.gov.uk/id/local-authority/32UF,Housing Landlord Manager,Professional and Contractors Fees,01/03/2022,30011442,"3,465.00 ",NPS Peterborough Ltd,,
South Holland District Council,http://statistics.data.gov.uk/id/local-authority/32UF,Housing Landlord Manager,Professional and Contractors Fees,24/02/2022,30011712,313.00 ,Language Line Ltd,,
South Holland District Council,http://statistics.data.gov.uk/id/local-authority/32UF,Housing Landlord Manager,Purchase of Hardware,01/03/2022,30012208,"18,852.90 ",Ballicom International,,
South Holland District Council,http://statistics.data.gov.uk/id/local-authority/32UF,Housing Landlord Manager,Roof Repairs,15/02/2022,30011813,"1,550.00 ",Kev Forman Roofing,,
South Holland District Council,http://statistics.data.gov.uk/id/local-authority/32UF,Housing Landlord Manager,Roof Repairs,15/02/2022,30011814,490.00 ,Kev Forman Roofing,,
South Holland District Council,http://statistics.data.gov.uk/id/local-authority/32UF,Housing Landlord Manager,Roof Repairs,22/02/2022,30011957,565.00 ,Wrights and Holbeach Asphalt Ltd,,
South Holland District Council,http://statistics.data.gov.uk/id/local-authority/32UF,Housing Landlord Manager,Roof Repairs,24/02/2022,30012050,"1,430.00 ",Kev Forman Roofing,,
South Holland District Council,http://statistics.data.gov.uk/id/local-authority/32UF,Housing Landlord Manager,Sewerage Treatment Works,24/02/2022,30011833,"24,718.07 ",C G Godfrey Ltd,,
South Holland District Council,http://statistics.data.gov.uk/id/local-authority/32UF,Housing Landlord Manager,Solid Fuel Servicing,01/03/2022,30011795,"1,732.90 ",Aaron Services Ltd,,
South Holland District Council,http://statistics.data.gov.uk/id/local-authority/32UF,Housing Landlord Manager,Staff Training Expenses (Non-Payroll),17/02/2022,30011336,785.50 ,Mel Can training,,
South Holland District Council,http://statistics.data.gov.uk/id/local-authority/32UF,Housing Landlord Manager,Staff Training Expenses (Non-Payroll),01/03/2022,30012506,617.20 ,The Sessions House Events Ltd,,
South Holland District Council,http://statistics.data.gov.uk/id/local-authority/32UF,Housing Landlord Manager,Subscriptions to Organisations and Other Bodies,17/02/2022,30011241,"3,518.71 ",Shared Services Connected Ltd Mappa,,
South Holland District Council,http://statistics.data.gov.uk/id/local-authority/32UF,Housing Landlord Manager,Subscriptions to Organisations and Other Bodies,24/02/2022,30011416,"1,226.88 ",Phoenix Software Ltd,,
South Holland District Council,http://statistics.data.gov.uk/id/local-authority/32UF,Housing Landlord Manager,Vehicle Hire,17/02/2022,30011468,536.60 ,Northgate Vehicle Hire Ltd,,
South Holland District Council,http://statistics.data.gov.uk/id/local-authority/32UF,Housing Landlord Manager,Void Repairs,15/02/2022,30011839,688.00 ,M and R Glass and Glazing Ltd,,
South Holland District Council,http://statistics.data.gov.uk/id/local-authority/32UF,Housing Landlord Manager,Void Repairs,22/02/2022,30012044,"2,975.00 ",Boors Ltd,,
South Holland District Council,http://statistics.data.gov.uk/id/local-authority/32UF,Housing Landlord Manager,Void Repairs,01/03/2022,30012317,159.00 ,M and R Glass and Glazing Ltd,,
South Holland District Council,http://statistics.data.gov.uk/id/local-authority/32UF,Housing Landlord Manager,Water and Sewerage Charges,01/03/2022,30011789,577.79 ,Anglian Water,,
South Holland District Council,http://statistics.data.gov.uk/id/local-authority/32UF,Housing Landlord Manager,Works to Buildings (Main Contractor),08/02/2022,30011436,"7,014.48 ",Ron Gale and Sons Ltd,,
South Holland District Council,http://statistics.data.gov.uk/id/local-authority/32UF,Housing Landlord Manager,Works to Buildings (Main Contractor),08/02/2022,30011445,"2,027.61 ",Ron Gale and Sons Ltd,,
South Holland District Council,http://statistics.data.gov.uk/id/local-authority/32UF,Housing Landlord Manager,Works to Buildings (Main Contractor),08/02/2022,30011447,"15,600.00 ",JPG Builders,,
South Holland District Council,http://statistics.data.gov.uk/id/local-authority/32UF,Housing Landlord Manager,Works to Buildings (Main Contractor),08/02/2022,30011493,"12,243.66 ",Ron Gale and Sons Ltd,,
South Holland District Council,http://statistics.data.gov.uk/id/local-authority/32UF,Housing Landlord Manager,Works to Buildings (Main Contractor),01/03/2022,30011799,"17,041.09 ",Aaron Services Ltd,,
South Holland District Council,http://statistics.data.gov.uk/id/local-authority/32UF,Housing Landlord Manager,Works to Buildings (Main Contractor),22/02/2022,30011829,"3,532.90 ",Hodgson Sayers Ltd,,
South Holland District Council,http://statistics.data.gov.uk/id/local-authority/32UF,Housing Landlord Manager,Works to Buildings (Main Contractor),15/02/2022,30011848,"1,796.37 ",C G Godfrey Ltd,,
South Holland District Council,http://statistics.data.gov.uk/id/local-authority/32UF,Housing Landlord Manager,Works to Buildings (Main Contractor),15/02/2022,30011872,"2,237.94 ",C G Godfrey Ltd,,
South Holland District Council,http://statistics.data.gov.uk/id/local-authority/32UF,Housing Landlord Manager,Works to Buildings (Main Contractor),24/02/2022,30011906,"12,279.02 ",D Brown Building Contractors Ltd,,
South Holland District Council,http://statistics.data.gov.uk/id/local-authority/32UF,Housing Landlord Manager,Works to Buildings (Main Contractor),24/02/2022,30011911,"5,643.47 ",D Brown Building Contractors Ltd,,
South Holland District Council,http://statistics.data.gov.uk/id/local-authority/32UF,Housing Landlord Manager,Works to Buildings (Main Contractor),22/02/2022,30011920,"83,200.36 ",Hodgson Sayers Ltd,,
South Holland District Council,http://statistics.data.gov.uk/id/local-authority/32UF,Housing Landlord Manager,Works to Buildings (Main Contractor),24/02/2022,30011949,"18,055.07 ",D Brown Building Contractors Ltd,,
South Holland District Council,http://statistics.data.gov.uk/id/local-authority/32UF,Housing Landlord Manager,Works to Buildings (Main Contractor),24/02/2022,30011950,"48,579.69 ",D Brown Building Contractors Ltd,,
South Holland District Council,http://statistics.data.gov.uk/id/local-authority/32UF,Housing Landlord Manager,Works to Buildings (Main Contractor),24/02/2022,30011951,725.11 ,C G Godfrey Ltd,,
South Holland District Council,http://statistics.data.gov.uk/id/local-authority/32UF,Housing Landlord Manager,Works to Buildings (Main Contractor),24/02/2022,30011952,484.47 ,C G Godfrey Ltd,,
South Holland District Council,http://statistics.data.gov.uk/id/local-authority/32UF,Housing Landlord Manager,Works to Buildings (Main Contractor),24/02/2022,30011954,"1,230.50 ",C G Godfrey Ltd,,
South Holland District Council,http://statistics.data.gov.uk/id/local-authority/32UF,Housing Landlord Manager,Works to Buildings (Main Contractor),17/02/2022,30011981,"3,113.55 ",C G Godfrey Ltd,,
South Holland District Council,http://statistics.data.gov.uk/id/local-authority/32UF,Housing Landlord Manager,Works to Buildings (Main Contractor),17/02/2022,30011982,"6,449.05 ",C G Godfrey Ltd,,
South Holland District Council,http://statistics.data.gov.uk/id/local-authority/32UF,Housing Landlord Manager,Works to Buildings (Main Contractor),24/02/2022,30012013,705.26 ,C G Godfrey Ltd,,
South Holland District Council,http://statistics.data.gov.uk/id/local-authority/32UF,Housing Landlord Manager,Works to Buildings (Main Contractor),24/02/2022,30012015,"1,120.66 ",C G Godfrey Ltd,,
South Holland District Council,http://statistics.data.gov.uk/id/local-authority/32UF,Housing Landlord Manager,Works to Buildings (Main Contractor),24/02/2022,30012027,471.88 ,C G Godfrey Ltd,,
South Holland District Council,http://statistics.data.gov.uk/id/local-authority/32UF,Housing Landlord Manager,Works to Buildings (Main Contractor),24/02/2022,30012028,"2,644.61 ",C G Godfrey Ltd,,
South Holland District Council,http://statistics.data.gov.uk/id/local-authority/32UF,Housing Landlord Manager,Works to Buildings (Main Contractor),01/03/2022,30012201,"26,290.00 ",Rybka Ltd,,
South Holland District Council,http://statistics.data.gov.uk/id/local-authority/32UF,Housing Landlord Manager,Works to Buildings (Main Contractor),01/03/2022,30012232,"4,663.42 ",C G Godfrey Ltd,,
South Holland District Council,http://statistics.data.gov.uk/id/local-authority/32UF,Housing Landlord Manager,Works to Buildings (Main Contractor),01/03/2022,30012272,"6,426.30 ",A Coupland (Surfacing) Ltd,,
South Holland District Council,http://statistics.data.gov.uk/id/local-authority/32UF,HR,Other Income,01/03/2022,30012261,-27.71 ,Unison,,
South Holland District Council,http://statistics.data.gov.uk/id/local-authority/32UF,ICT and Customer Services,Computer Hardware Maintenance,08/02/2022,30011618,"1,097.80 ",E File UK Ltd,,
South Holland District Council,http://statistics.data.gov.uk/id/local-authority/32UF,ICT and Customer Services,Computer Hardware Purchase,24/02/2022,30011467,"1,009.61 ",Nominet UK,,
South Holland District Council,http://statistics.data.gov.uk/id/local-authority/32UF,ICT and Customer Services,Computer Hardware Purchase,01/03/2022,30012209,"1,772.98 ",Vohkus Limited,,
South Holland District Council,http://statistics.data.gov.uk/id/local-authority/32UF,ICT and Customer Services,External Printing and Design Costs,01/03/2022,30012179,"4,808.74 ",Public Sector Partnership Services Ltd,,
South Holland District Council,http://statistics.data.gov.uk/id/local-authority/32UF,ICT and Customer Services,PSPS Non-Base Contract Costs,10/02/2022,30011487,"3,231.32 ",Public Sector Partnership Services Ltd,,
South Holland District Council,http://statistics.data.gov.uk/id/local-authority/32UF,ICT and Customer Services,PSPS Non-Base Contract Costs,10/02/2022,30011622,"1,615.66 ",Public Sector Partnership Services Ltd,,
South Holland District Council,http://statistics.data.gov.uk/id/local-authority/32UF,ICT and Customer Services,Telephones,01/03/2022,30011871,"1,971.61 ",Daisy Communications Ltd,,
South Holland District Council,http://statistics.data.gov.uk/id/local-authority/32UF,Planning,Agency - Vacant Post Cover,17/02/2022,30011285,"1,540.50 ",Vivid Resourcing,,
South Holland District Council,http://statistics.data.gov.uk/id/local-authority/32UF,Planning,Agency - Vacant Post Cover,24/02/2022,30011400,"1,498.80 ",Vivid Resourcing,,
South Holland District Council,http://statistics.data.gov.uk/id/local-authority/32UF,Public Protection,Commercial Vehicle Lease Payments (Less than 12 months),01/03/2022,30011710,640.02 ,Alphabet Gb Limited,,
South Holland District Council,http://statistics.data.gov.uk/id/local-authority/32UF,Public Protection,Fuel and Oil,22/02/2022,30012007,51.90 ,C H Jones Ltd,,
South Holland District Council,http://statistics.data.gov.uk/id/local-authority/32UF,Public Protection,Professional and Contractors Fees,24/02/2022,30011270,"1,369.00 ",The Oyster Partnership Ltd,,
South Holland District Council,http://statistics.data.gov.uk/id/local-authority/32UF,Public Protection,Professional and Contractors Fees,01/03/2022,30011708,"1,369.00 ",The Oyster Partnership Ltd,,
South Holland District Council,http://statistics.data.gov.uk/id/local-authority/32UF,South Holland Balance Sheet,ST Debtors HB Overpayments Control Account,17/02/2022,30011849,889.02 ,East Lindsey District Council,,
South Holland District Council,http://statistics.data.gov.uk/id/local-authority/32UF,Spalding Specials,Buildings Maintenance - Responsive,15/02/2022,30011800,936.00 ,M and R Glass and Glazing Ltd,,
South Holland District Council,http://statistics.data.gov.uk/id/local-authority/32UF,Spalding Specials,Gas,24/02/2022,30012174,523.62 ,British Gas Business,,
South Holland District Council,http://statistics.data.gov.uk/id/local-authority/32UF,Town Centre Improvement Plan,Agency Staff,01/02/2022,30011268,218.44 ,Encore Personnel Services Ltd,,
South Holland District Council,http://statistics.data.gov.uk/id/local-authority/32UF,Town Centre Improvement Plan,Agency Staff,08/02/2022,30011616,546.12 ,Encore Personnel Services Ltd,,
South Holland District Council,http://statistics.data.gov.uk/id/local-authority/32UF,Town Centre Improvement Plan,Agency Staff,01/03/2022,30012501,351.65 ,Integrity Plus Ltd,,
South Holland District Council,http://statistics.data.gov.uk/id/local-authority/32UF,Town Centre Improvement Plan,Agency Staff,01/03/2022,30012502,234.43 ,Integrity Plus Ltd,,
South Holland District Council,http://statistics.data.gov.uk/id/local-authority/32UF,Town Centre Improvement Plan,Agency Staff,01/03/2022,30012503,468.86 ,Integrity Plus Ltd,,
South Holland District Council,http://statistics.data.gov.uk/id/local-authority/32UF,Town Centre Improvement Plan,Fuel and Oil,08/02/2022,30011606,55.84 ,C H Jones Ltd,,
South Holland District Council,http://statistics.data.gov.uk/id/local-authority/32UF,Town Centre Improvement Plan,Furniture and Equipment,17/02/2022,30011652,"1,633.80 ",4imprint Direct Limited,,
South Holland District Council,http://statistics.data.gov.uk/id/local-authority/32UF,Town Centre Improvement Plan,Other Miscellaneous Expenses,24/02/2022,30012224,950.00 ,Popcorn Media,,
South Holland District Council,http://statistics.data.gov.uk/id/local-authority/32UF,Town Centre Improvement Plan,Other Miscellaneous Expenses,24/02/2022,30012225,"2,495.00 ",Popcorn Media,,
South Holland District Council,http://statistics.data.gov.uk/id/local-authority/32UF,Town Centre Improvement Plan,Other Miscellaneous Expenses,01/03/2022,30012482,590.00 ,Rubys and Diamonds,,
South Holland District Council,http://statistics.data.gov.uk/id/local-authority/32UF,Town Centre Improvement Plan,Other Miscellaneous Expenses,01/03/2022,30012496,550.00 ,Wycomb Pastures Mobile Petting Farm LTD,,
